bitfinex-derivatives/quotes_SOLF0:USTF0_20250709
["timestamp","ask_amount","ask_price","bid_price","bid_amount"]
[1752058958302,2.2537,153.12,153.09,0.0447575]
[1752058958497,2.40236237,153.11,153.09,0.0447575]
[1752058960809,2.40236237,153.1,153.09,0.0447575]
[1752058962810,2.40236237,153.11,153.09,0.0447575]
[1752058964306,2.40236237,153.1,153.06,2.40236237]
[1752058964506,4.6213498,153.09,152.98,2.40318283]
[1752058964808,2.40318283,153.04,153.0,2.40318283]
[1752058965509,2.45058965,153.04,153.0,0.0416677]
[1752058965810,5.11718106,153.03,153.0,0.0416677]
[1752058966010,5.11718106,153.02,153.0,0.0416677]
[1752058966200,2.45150168,153.04,153.0,0.0416677]
[1752058966403,5.11792003,153.03,153.02,2.40409486]
[1752058966604,0.04740682,153.04,153.02,2.40409486]
[1752058966810,2.2064,153.09,153.02,3.75399004]
[1752058967007,3.75399004,153.11,153.02,3.75399004]
[1752058968113,0.04437866,153.08,153.05,0.04900193]
[1752058971712,3.75399004,153.13,153.06,3.75399004]
[1752058971908,3.75399004,153.13,153.06,5.99359004]
[1752058978914,4.70911105,153.12,153.06,5.99359004]
[1752058979108,3.75399004,153.13,153.06,5.99359004]
[1752058979309,4.7095117,153.12,153.06,5.99359004]
[1752058979605,3.75399004,153.13,153.06,5.99359004]
[1752058979808,4.70950947,153.12,153.06,5.99359004]
[1752058980016,3.75399004,153.13,153.06,5.99359004]
[1752058980312,566.1466,153.17,153.06,5.99359004]
[1752058980511,3.75399004,153.13,153.06,5.99359004]
[1752058980711,4.7100272,153.12,153.06,5.99359004]
[1752058980906,3.75399004,153.13,153.08,0.04382965]
[1752058981111,4.71013425,153.12,153.08,0.04382965]
[1752058981311,3.75399004,153.13,153.08,0.04382965]
[1752058981511,4.71079663,153.12,153.08,0.04382965]
[1752058981713,4.72073555,153.11,153.08,0.04382965]
[1752058981914,3.75399004,153.13,153.08,0.04382965]
[1752058982114,4.72073555,153.12,153.08,0.04382965]
[1752058982414,4.72073555,153.11,153.08,0.04382965]
[1752058982607,3.75399004,153.13,153.08,0.04382965]
[1752058982809,4.72154075,153.12,153.08,0.04382965]
[1752058983008,4.72154075,153.11,153.08,0.04382965]
[1752058983218,3.75399004,153.13,153.08,0.04382965]
[1752058983412,4.72239875,153.12,153.08,0.04382965]
[1752058983708,4.72239875,153.11,153.08,0.04382965]
[1752058983914,3.75399004,153.13,153.08,0.04382965]
[1752058984113,4.72239875,153.12,153.08,0.04382965]
[1752058984314,4.72239875,153.11,153.08,0.04382965]
[1752058984521,3.75399004,153.13,153.08,0.04382965]
[1752058984718,3.75399004,153.11,153.08,0.04382965]
[1752058984922,4.7232932,153.1,153.08,0.04382965]
[1752058985115,3.75399004,153.11,153.06,2.2396]
[1752058985413,4.72361552,153.1,153.07,0.04950233]
[1752058985613,3.75399004,153.11,153.07,0.04950233]
[1752058985811,4.7236175,153.1,153.07,0.04950233]
[1752058986016,3.75399004,153.11,153.07,0.04950233]
[1752058986216,4.72853514,153.1,153.07,0.04950233]
[1752058986412,3.75399004,153.11,153.07,0.04950233]
[1752058986719,4.72866602,153.1,153.07,0.04950233]
[1752058986920,3.75399004,153.11,153.07,0.04950233]
[1752058987120,4.72867047,153.1,153.07,0.04950233]
[1752058987322,3.75399004,153.11,153.07,0.04950233]
[1752058987522,4.7287148,153.1,153.07,0.04950233]
[1752058987723,3.75399004,153.11,153.07,0.04950233]
[1752058987919,4.7287148,153.1,153.07,0.04950233]
[1752058988118,3.75399004,153.11,153.07,0.04950233]
[1752058988322,4.72875639,153.1,153.07,0.04950233]
[1752058988521,3.75399004,153.11,153.07,0.04950233]
[1752058988718,4.72875639,153.1,153.07,0.04950233]
[1752058988918,3.75399004,153.11,153.07,0.04950233]
[1752058989120,4.72875639,153.1,153.07,0.04950233]
[1752058989321,3.75399004,153.11,153.07,0.04950233]
[1752058989519,4.7287985,153.1,153.07,0.04950233]
[1752058989715,3.75399004,153.11,153.07,0.04950233]
[1752058992324,9.13515568,153.17,153.07,0.04950233]
[1752058992525,3.75399004,153.14,153.07,0.04950233]
[1752058992823,4.64197426,153.13,153.06,5.99359004]
[1752058993024,4.64197426,153.12,153.09,0.04694117]
[1752058993223,3.75399004,153.14,153.09,0.04694117]
[1752058993524,4.63636218,153.13,153.09,0.04694117]
[1752058993821,4.63636218,153.12,153.09,0.04694117]
[1752058994017,3.75399004,153.14,153.09,0.04694117]
[1752058994213,3.75399004,153.16,153.09,0.04694117]
[1752058994420,4.63559795,153.15,153.09,0.04694117]
[1752058994624,4.63559795,153.14,153.09,0.04694117]
[1752058994824,3.75399004,153.16,153.09,0.04694117]
[1752058995024,4.63559795,153.15,153.09,0.04694117]
[1752058995324,4.63559795,153.14,153.09,0.04694117]
[1752058995625,3.75399004,153.16,153.09,0.04694117]
[1752058995815,4.63490652,153.15,153.09,0.04694117]
[1752058996021,4.63490652,153.14,153.09,0.04694117]
[1752058996220,3.75399004,153.16,153.09,0.04694117]
[1752058996519,4.61465816,153.15,153.09,0.04694117]
[1752058996719,4.61465816,153.14,153.09,0.04694117]
[1752058996918,3.75399004,153.16,153.09,0.04694117]
[1752058997224,4.61465816,153.15,153.09,0.04694117]
[1752058997420,3.75399004,153.16,153.09,0.04694117]
[1752058997421,4.61465816,153.14,153.09,0.04694117]
[1752058997724,3.75399004,153.16,153.09,0.04694117]
[1752058998023,4.61393609,153.15,153.09,0.04694117]
[1752058998225,4.61393609,153.14,153.09,0.04694117]
[1752058998424,3.75399004,153.16,153.09,0.04694117]
[1752058998623,4.62801698,153.15,153.09,0.04694117]
[1752058998824,4.62801698,153.14,153.09,0.04694117]
[1752058999124,3.75399004,153.16,153.09,0.04694117]
[1752058999327,4.62740192,153.15,153.09,0.04694117]
[1752058999523,3.75399004,153.16,153.09,0.04694117]
[1752058999823,4.62740192,153.15,153.09,0.04694117]
[1752059000023,3.75399004,153.16,153.09,0.04694117]
[1752059000225,4.62740193,153.15,153.09,0.04694117]
[1752059000427,3.75399004,153.16,153.09,0.04694117]
[1752059000620,4.62683238,153.15,153.09,0.04694117]
[1752059000820,2.1737,153.18,153.12,3.75399004]
[1752059001026,4.6263274,153.17,153.12,3.75399004]
[1752059001228,4.6263274,153.16,153.12,3.75399004]
[1752059001424,2.1737,153.18,153.13,0.05026173]
[1752059001624,4.62513094,153.17,153.13,0.05026173]
[1752059001928,4.62513094,153.16,153.13,0.05026173]
[1752059002126,2.1737,153.18,153.13,0.05026173]
[1752059002322,4.62445695,153.17,153.13,0.05026173]
[1752059002518,2.1737,153.18,153.13,0.05026173]
[1752059002723,4.62412884,153.17,153.13,0.05026173]
[1752059002923,2.1737,153.18,153.13,0.05026173]
[1752059003122,4.63885856,153.17,153.13,0.05026173]
[1752059003425,2.1737,153.18,153.13,0.05026173]
[1752059003625,4.63782197,153.17,153.13,0.05026173]
[1752059003827,2.1737,153.18,153.13,0.05026173]
[1752059004128,4.63782197,153.17,153.13,0.05026173]
[1752059004321,2.1737,153.18,153.13,0.05026173]
[1752059004625,4.63683108,153.17,153.13,0.05026173]
[1752059004827,2.1737,153.18,153.13,0.05026173]
[1752059005029,8.39081235,153.17,153.13,0.05026173]
[1752059005226,3.75399004,153.17,153.13,0.05026173]
[1752059006623,2.1737,153.18,153.13,0.05026173]
[1752059006830,8.38956352,153.17,153.13,0.05026173]
[1752059007128,3.75399004,153.17,153.13,0.05026173]
[1752059009234,2.1737,153.18,153.13,0.05026173]
[1752059009532,4.63394749,153.17,153.13,0.05026173]
[1752059009832,2.1737,153.18,153.13,0.05026173]
[1752059011232,3.75399004,153.25,153.16,3.75399004]
[1752059011531,17.75833214,153.24,153.18,3.75399004]
[1752059011732,4.63588958,153.23,153.19,0.04842119]
[1752059011935,4.63588958,153.22,153.19,0.04842119]
[1752059012135,4.3661,153.26,153.19,0.04842119]
[1752059012334,3.75399004,153.24,153.19,0.04842119]
[1752059012536,4.6342794,153.23,153.19,0.04842119]
[1752059012733,4.6342794,153.22,153.19,0.04842119]
[1752059012934,3.75399004,153.24,153.19,0.04842119]
[1752059013134,4.63417572,153.23,153.19,0.04842119]
[1752059013336,4.63417572,153.22,153.19,0.04842119]
[1752059013530,3.75399004,153.24,153.19,0.04842119]
[1752059013836,4.63299288,153.23,153.19,0.04842119]
[1752059014133,3.75399004,153.24,153.19,0.04842119]
[1752059014333,4.65177847,153.23,153.19,0.04842119]
[1752059014534,4.65177847,153.22,153.19,0.04842119]
[1752059014735,3.75399004,153.24,153.19,0.04842119]
[1752059014936,4.65177847,153.23,153.19,0.04842119]
[1752059015136,4.3661,153.26,153.19,0.04842119]
[1752059015432,4.65102237,153.25,153.19,3.80241123]
[1752059015633,4.65102237,153.24,153.19,3.80241123]
[1752059015936,4.65102237,153.23,153.19,3.80241123]
[1752059016232,4.3661,153.26,153.19,3.80241123]
[1752059016538,4.64868874,153.25,153.19,3.80241123]
[1752059016732,8.40267878,153.24,153.19,3.80241123]
[1752059016927,4.64909403,153.23,153.19,0.04842119]
[1752059017235,3.75399004,153.24,153.19,0.04842119]
[1752059017437,4.64793778,153.23,153.19,0.04842119]
[1752059017638,3.75399004,153.24,153.19,0.04842119]
[1752059017937,4.64793778,153.23,153.19,0.04842119]
[1752059018236,3.75399004,153.24,153.19,0.04842119]
[1752059018434,4.65186942,153.23,153.19,0.04842119]
[1752059018636,3.75399004,153.24,153.19,0.04842119]
[1752059018836,4.65186942,153.23,153.19,0.04842119]
[1752059019040,3.75399004,153.24,153.19,0.04842119]
[1752059019234,4.65111083,153.23,153.19,0.04842119]
[1752059019536,3.75399004,153.24,153.19,0.04842119]
[1752059019735,4.65130499,153.23,153.19,0.04842119]
[1752059019939,3.75399004,153.24,153.19,0.04842119]
[1752059020137,4.65130499,153.23,153.19,0.04842119]
[1752059020339,3.75399004,153.24,153.19,0.04842119]
[1752059020537,4.65047145,153.23,153.19,0.04842119]
[1752059020843,3.75399004,153.24,153.19,0.04842119]
[1752059021138,3.75399004,153.25,153.19,3.80241123]
[1752059021330,4.6492722,153.24,153.19,3.80241123]
[1752059021536,4.6492722,153.23,153.19,3.80241123]
[1752059021834,3.75399004,153.25,153.19,3.80241123]
[1752059022133,4.6492722,153.24,153.19,3.80241123]
[1752059022333,4.6492722,153.23,153.19,3.80241123]
[1752059022539,3.75399004,153.25,153.19,3.80241123]
[1752059022740,4.6486461,153.24,153.19,3.80241123]
[1752059023041,4.6486461,153.23,153.19,3.80241123]
[1752059023238,3.75399004,153.25,153.19,3.80241123]
[1752059023439,4.64797471,153.24,153.19,3.80241123]
[1752059023638,4.64797471,153.23,153.19,3.80241123]
[1752059023944,3.75399004,153.25,153.19,0.04842119]
[1752059024131,4.64797471,153.24,153.19,0.04842119]
[1752059024334,4.64797471,153.23,153.19,0.04842119]
[1752059024536,3.75399004,153.25,153.19,0.04842119]
[1752059024736,4.64740098,153.24,153.19,0.04842119]
[1752059025039,3.75399004,153.25,153.19,0.04842119]
[1752059025339,4.6472956,153.24,153.19,0.04842119]
[1752059025539,3.75399004,153.25,153.19,0.04842119]
[1752059025841,4.64674189,153.24,153.19,0.04842119]
[1752059026142,3.75399004,153.25,153.19,0.04842119]
[1752059026440,4.64626116,153.24,153.19,0.04842119]
[1752059026640,3.75399004,153.24,153.19,0.04842119]
[1752059029339,4.3661,153.26,153.19,0.04842119]
[1752059029542,3.75399004,153.24,153.19,0.04842119]
[1752059032348,4.3661,153.26,153.19,0.04842119]
[1752059032545,8.38790248,153.25,153.19,0.04842119]
[1752059032745,3.75399004,153.25,153.19,0.04842119]
[1752059033052,4.3661,153.26,153.19,0.04842119]
[1752059033346,4.63466924,153.25,153.19,0.04842119]
[1752059033547,8.12009004,153.26,153.19,0.04842119]
[1752059033742,4.63466924,153.25,153.19,0.04842119]
[1752059034046,8.12009004,153.26,153.19,0.04842119]
[1752059034243,4.63933155,153.25,153.19,0.04842119]
[1752059034439,8.12009004,153.26,153.19,0.04842119]
[1752059034741,4.64021211,153.25,153.19,0.04842119]
[1752059034946,8.12009004,153.26,153.19,0.04842119]
[1752059035148,4.64021211,153.25,153.19,3.80241123]
[1752059035347,8.12009004,153.26,153.19,3.80241123]
[1752059035548,4.64125733,153.25,153.19,3.80241123]
[1752059035843,8.12009004,153.26,153.19,3.80241123]
[1752059036040,4.64106389,153.25,153.19,3.80241123]
[1752059036240,3.75399004,153.28,153.21,3.75399004]
[1752059036446,9.13515568,153.32,153.23,3.75399004]
[1752059036447,4.64204592,153.27,153.23,3.75399004]
[1752059036648,3.75399004,153.3,153.23,3.75399004]
[1752059036843,4.64147865,153.29,153.23,3.8023781]
[1752059037149,4.64147065,153.28,153.23,3.8023781]
[1752059037346,4.64147065,153.27,153.23,3.8023781]
[1752059037639,2.3322,153.29,153.23,3.8023781]
[1752059037841,4.64212951,153.28,153.23,3.8023781]
[1752059038048,2.3322,153.29,153.23,3.8023781]
[1752059038049,4.64212951,153.27,153.23,3.8023781]
[1752059038349,2.3322,153.29,153.23,3.8023781]
[1752059038552,4.65158618,153.28,153.23,3.8023781]
[1752059038746,4.65158618,153.27,153.23,3.8023781]
[1752059038949,2.3322,153.29,153.23,3.8023781]
[1752059039248,4.65158618,153.28,153.23,3.8023781]
[1752059039449,4.65158618,153.27,153.23,3.8023781]
[1752059039649,2.3322,153.29,153.23,3.8023781]
[1752059039953,4.65187825,153.28,153.23,3.8023781]
[1752059040147,2.3322,153.29,153.23,3.8023781]
[1752059040449,4.65254952,153.28,153.23,3.8023781]
[1752059040644,2.3322,153.29,153.23,3.8023781]
[1752059040845,4.65254952,153.28,153.23,3.8023781]
[1752059041041,2.3322,153.29,153.23,3.8023781]
[1752059041242,4.65317691,153.28,153.23,3.8023781]
[1752059041451,2.3322,153.29,153.23,3.8023781]
[1752059041653,4.65223613,153.28,153.23,3.8023781]
[1752059041850,2.3322,153.29,153.23,3.8023781]
[1752059042154,4.65213106,153.28,153.23,3.8023781]
[1752059042452,2.3322,153.29,153.23,3.8023781]
[1752059042750,4.65179647,153.28,153.23,3.8023781]
[1752059042951,2.3322,153.29,153.23,3.8023781]
[1752059043151,4.65179647,153.28,153.23,3.8023781]
[1752059043352,2.3322,153.29,153.23,3.8023781]
[1752059043649,4.6565552,153.28,153.23,3.8023781]
[1752059043853,2.3322,153.29,153.23,3.8023781]
[1752059044053,4.65655306,153.28,153.23,3.8023781]
[1752059044254,2.3322,153.29,153.23,3.8023781]
[1752059044551,4.65664836,153.28,153.23,3.8023781]
[1752059044749,2.3322,153.29,153.23,3.8023781]
[1752059044949,4.65664836,153.28,153.23,3.8023781]
[1752059045151,2.3322,153.29,153.23,3.8023781]
[1752059045349,4.65771452,153.28,153.23,0.04838806]
[1752059045548,2.3322,153.29,153.23,3.8023781]
[1752059045752,4.65720748,153.28,153.23,3.8023781]
[1752059045954,2.3322,153.29,153.23,3.8023781]
[1752059046253,4.65720748,153.28,153.23,3.8023781]
[1752059046454,2.3322,153.29,153.23,3.8023781]
[1752059046655,4.65727336,153.28,153.23,3.8023781]
[1752059046855,2.3322,153.29,153.23,3.8023781]
[1752059047058,4.65727336,153.28,153.23,3.8023781]
[1752059047355,2.3322,153.29,153.23,3.8023781]
[1752059047553,4.65702493,153.28,153.23,3.8023781]
[1752059047747,2.3322,153.29,153.23,3.8023781]
[1752059047946,4.65702493,153.28,153.23,3.8023781]
[1752059048147,2.3322,153.29,153.23,3.8023781]
[1752059048347,4.65762624,153.28,153.23,3.8023781]
[1752059048650,2.3322,153.29,153.23,3.8023781]
[1752059048955,4.65715327,153.28,153.23,3.8023781]
[1752059049156,2.3322,153.29,153.23,3.8023781]
[1752059049451,4.66274707,153.28,153.23,3.8023781]
[1752059049653,2.3322,153.29,153.23,3.8023781]
[1752059049855,4.66234544,153.28,153.23,3.8023781]
[1752059050154,2.3322,153.29,153.23,3.8023781]
[1752059050356,4.66305952,153.28,153.23,3.8023781]
[1752059050554,2.3322,153.29,153.24,3.75399004]
[1752059050754,4.66305952,153.28,153.24,3.75399004]
[1752059051051,2.3322,153.29,153.24,3.75399004]
[1752059051255,4.66428123,153.28,153.24,3.75399004]
[1752059051455,2.3322,153.29,153.24,3.75399004]
[1752059051658,4.66398803,153.28,153.24,3.75399004]
[1752059051858,2.3322,153.29,153.24,3.75399004]
[1752059052056,4.66398803,153.28,153.24,3.75399004]
[1752059052357,2.3322,153.29,153.24,3.75399004]
[1752059052557,4.66515067,153.28,153.24,3.75399004]
[1752059052757,2.3322,153.29,153.24,3.75399004]
[1752059052958,4.66515067,153.28,153.24,3.75399004]
[1752059053260,2.3322,153.29,153.23,0.04838806]
[1752059053459,4.66657574,153.28,153.23,0.04838806]
[1752059053657,2.3322,153.29,153.23,0.04838806]
[1752059053957,4.66657574,153.28,153.23,0.04838806]
[1752059054159,2.3322,153.29,153.23,0.04838806]
[1752059054354,4.66830463,153.28,153.23,0.04838806]
[1752059054656,2.3322,153.29,153.23,0.04838806]
[1752059054956,4.66830463,153.28,153.23,0.04838806]
[1752059055157,2.3322,153.29,153.23,0.04838806]
[1752059055458,4.67437767,153.28,153.23,0.04838806]
[1752059055656,2.3322,153.29,153.23,0.04838806]
[1752059055858,4.67437767,153.28,153.23,0.04838806]
[1752059056057,2.3322,153.29,153.23,0.04838806]
[1752059056258,4.67592147,153.28,153.23,0.04838806]
[1752059056556,2.3322,153.29,153.23,0.04838806]
[1752059056854,4.67577342,153.28,153.23,0.04838806]
[1752059057058,2.3322,153.29,153.23,0.04838806]
[1752059057261,4.69686347,153.28,153.23,0.04838806]
[1752059057454,2.3322,153.29,153.23,0.04838806]
[1752059057660,8.45074244,153.28,153.23,0.04838806]
[1752059057860,4.6967524,153.27,153.23,0.04838806]
[1752059058060,3.75399004,153.28,153.23,0.04838806]
[1752059058260,4.69737032,153.27,153.23,0.04838806]
[1752059058458,4.69737032,153.26,153.23,0.04838806]
[1752059058659,3.75399004,153.28,153.23,0.04838806]
[1752059058956,4.69752031,153.27,153.23,0.04838806]
[1752059059155,4.69752031,153.26,153.23,0.04838806]
[1752059059355,3.75399004,153.28,153.23,0.04838806]
[1752059059557,4.69784115,153.27,153.23,0.04838806]
[1752059059752,4.69784115,153.26,153.23,0.04838806]
[1752059059955,3.75399004,153.28,153.23,0.04838806]
[1752059060152,4.69784115,153.27,153.23,0.04838806]
[1752059060365,4.74164495,153.26,153.23,0.04838806]
[1752059060557,0.0438038,153.26,153.23,0.04838806]
[1752059065168,4.70034405,153.25,153.23,0.04838806]
[1752059065361,0.0438038,153.26,153.23,0.04838806]
[1752059065667,4.70058496,153.25,153.23,0.04838806]
[1752059065874,3.79779384,153.26,153.23,0.04838806]
[1752059066165,4.70088766,153.25,153.23,0.04838806]
[1752059066368,4.70088766,153.24,153.23,0.04838806]
[1752059066571,8.4548777,153.24,153.16,567.35399004]
[1752059066773,3.75399004,153.2,153.13,3.75399004]
[1752059067071,3.75399004,153.2,153.1,4.516]
[1752059067072,3.75399004,153.2,153.11,3.75399004]
[1752059067272,2.1334,153.25,153.11,3.75399004]
[1752059067273,3.75399004,153.18,153.11,3.75399004]
[1752059067674,3.75399004,153.18,153.13,0.05014347]
[1752059070176,3.75399004,153.2,153.13,0.05014347]
[1752059070475,4.67412607,153.19,153.11,400.38200391]
[1752059070675,3.75399004,153.2,153.15,0.04299543]
[1752059070974,4.67412388,153.19,153.15,0.04299543]
[1752059071174,3.75399004,153.2,153.15,0.04299543]
[1752059071368,4.67400937,153.19,153.15,0.04299543]
[1752059071571,3.75399004,153.2,153.15,0.04299543]
[1752059071771,4.67287134,153.19,153.15,0.04299543]
[1752059072070,3.75399004,153.2,153.15,0.04299543]
[1752059075374,2.1346,153.24,153.15,3.79698547]
[1752059075579,9.35957464,153.23,153.17,3.75399004]
[1752059075877,2.1346,153.24,153.17,3.75399004]
[1752059076075,2.1346,153.24,153.18,0.04857121]
[1752059077274,5.88739004,153.25,153.19,3.75399004]
[1752059078078,5.88739004,153.25,153.18,0.04857121]
[1752059078380,5.88739004,153.25,153.19,3.75399004]
[1752059080482,5.88739004,153.25,153.18,0.04857121]
[1752059080685,3.75399004,153.23,153.18,0.04857121]
[1752059086876,3.75399004,153.21,153.18,0.04857121]
[1752059089578,3.75399004,153.2,153.18,0.04857121]
[1752059096181,3.75399004,153.22,153.18,0.04857121]
[1752059096390,4.74434567,153.21,153.18,0.04857121]
[1752059096586,3.74810788,153.22,153.18,0.04857121]
[1752059096787,4.74423828,153.21,153.18,0.04857121]
[1752059097087,3.74810788,153.22,153.18,0.04857121]
[1752059097290,4.74423828,153.21,153.18,0.04857121]
[1752059097489,3.74828737,153.22,153.18,0.04857121]
[1752059097789,4.74494131,153.21,153.18,0.04857121]
[1752059097992,3.74828737,153.22,153.18,0.04857121]
[1752059098182,4.74494155,153.21,153.18,0.04857121]
[1752059098390,3.74828737,153.22,153.18,0.04857121]
[1752059098592,4.74575471,153.21,153.18,0.04857121]
[1752059098793,3.74828737,153.22,153.18,0.04857121]
[1752059099089,4.74575471,153.21,153.18,0.04857121]
[1752059099287,3.74828737,153.22,153.18,0.04857121]
[1752059099482,4.74667698,153.21,153.18,0.04857121]
[1752059099790,3.74828737,153.22,153.18,0.04857121]
[1752059099989,4.74657548,153.21,153.18,0.04857121]
[1752059100189,3.74828737,153.22,153.18,0.04857121]
[1752059100390,4.74741861,153.21,153.18,0.04857121]
[1752059100587,3.74828737,153.22,153.18,0.04857121]
[1752059100787,4.74722079,153.21,153.18,0.04857121]
[1752059101092,2.2436,153.24,153.18,0.04857121]
[1752059101288,8.49550816,153.23,153.18,0.04857121]
[1752059101490,4.74722079,153.22,153.18,0.04857121]
[1752059101690,4.74722079,153.21,153.18,0.04857121]
[1752059101891,3.74828737,153.23,153.18,0.04857121]
[1752059102092,4.74827922,153.22,153.18,0.04857121]
[1752059102393,4.74957874,153.21,153.18,0.04857121]
[1752059102593,3.74828737,153.23,153.18,0.04857121]
[1752059102798,4.74957874,153.22,153.18,0.04857121]
[1752059102991,4.74957874,153.21,153.18,0.04857121]
[1752059103190,3.74828737,153.23,153.18,0.04857121]
[1752059103390,4.75056043,153.22,153.18,0.04857121]
[1752059103592,4.75056043,153.21,153.18,0.04857121]
[1752059103788,3.74828737,153.23,153.18,0.04857121]
[1752059103995,4.75055821,153.22,153.18,0.04857121]
[1752059104192,4.75055821,153.21,153.18,0.04857121]
[1752059104494,3.74828737,153.23,153.18,0.04857121]
[1752059104795,4.75654527,153.22,153.18,0.04857121]
[1752059104992,4.75654527,153.21,153.18,0.04857121]
[1752059105194,3.74828737,153.23,153.18,0.04857121]
[1752059105396,4.75758218,153.22,153.18,0.04857121]
[1752059105592,3.74828737,153.23,153.18,0.04857121]
[1752059105791,4.75758218,153.22,153.18,0.04857121]
[1752059105992,3.74828737,153.23,153.18,0.04857121]
[1752059106197,4.75758218,153.22,153.18,0.04857121]
[1752059106394,4.75758218,153.21,153.18,0.04857121]
[1752059106698,3.74828737,153.23,153.18,0.04857121]
[1752059106897,4.75850962,153.22,153.18,0.04857121]
[1752059107095,4.75850962,153.21,153.18,0.04857121]
[1752059107295,5.99188737,153.24,153.18,0.04857121]
[1752059107495,4.75951631,153.23,153.18,0.04857121]
[1752059107797,4.75951631,153.22,153.18,0.04857121]
[1752059107998,4.75951631,153.21,153.18,0.04857121]
[1752059108199,5.99188737,153.24,153.18,0.04857121]
[1752059108497,4.7655286,153.23,153.18,0.04857121]
[1752059108798,4.7655286,153.22,153.18,0.04857121]
[1752059109104,4.7655286,153.21,153.18,3.79685858]
[1752059109297,5.99188737,153.24,153.18,3.79685858]
[1752059109598,4.76673956,153.23,153.18,3.79685858]
[1752059109801,4.76673956,153.22,153.18,3.79685858]
[1752059109998,4.76673956,153.21,153.18,3.79685858]
[1752059110192,5.99188737,153.24,153.18,3.79685858]
[1752059110391,4.76809418,153.23,153.18,3.79685858]
[1752059110596,4.76809418,153.22,153.18,3.79685858]
[1752059110801,4.76809418,153.21,153.18,3.79685858]
[1752059110996,5.99188737,153.24,153.18,3.79685858]
[1752059111192,4.7679865,153.23,153.18,3.79685858]
[1752059111498,4.7679865,153.22,153.18,3.79685858]
[1752059111698,4.7679865,153.21,153.18,3.79685858]
[1752059111899,5.99188737,153.24,153.18,3.79685858]
[1752059112100,9.57637328,153.23,153.18,3.79685858]
[1752059112299,4.76869649,153.22,153.18,3.79685858]
[1752059112499,4.76869649,153.21,153.18,3.79685858]
[1752059112701,5.99188737,153.24,153.18,3.79685858]
[1752059112897,9.57610652,153.23,153.18,3.79685858]
[1752059113197,4.76856365,153.22,153.18,3.79685858]
[1752059113397,4.76856365,153.21,153.18,0.04857121]
[1752059113594,4.76856365,153.2,153.18,0.04857121]
[1752059113797,5.99090751,153.24,153.18,0.04857121]
[1752059113996,18.12433868,153.23,153.18,0.04857121]
[1752059114202,4.76907883,153.22,153.18,0.04857121]
[1752059114398,4.76907883,153.21,153.18,0.04857121]
[1752059114600,4.76907883,153.2,153.18,0.04857121]
[1752059114798,5.99090751,153.24,153.18,0.04857121]
[1752059114999,18.12697196,153.23,153.18,0.04857121]
[1752059115202,4.76976474,153.22,153.18,0.04857121]
[1752059115400,4.76976474,153.21,153.18,0.04857121]
[1752059115697,4.76976474,153.2,153.18,0.04857121]
[1752059115902,5.99090751,153.24,153.18,0.04857121]
[1752059116104,18.12994465,153.23,153.18,0.04857121]
[1752059116401,9.58061901,153.22,153.18,0.04857121]
[1752059116603,4.77053814,153.21,153.18,0.04857121]
[1752059116804,4.77053814,153.2,153.18,0.04857121]
[1752059116999,5.99090751,153.24,153.18,0.04857121]
[1752059117201,18.13242742,153.23,153.18,0.04857121]
[1752059117400,21.87973493,153.22,153.18,0.04857121]
[1752059117602,4.77109028,153.21,153.18,0.04857121]
[1752059117803,4.77109028,153.2,153.18,0.04857121]
[1752059118104,4.77109028,153.19,153.18,0.04857121]
[1752059123302,3.74730751,153.22,153.18,0.04857121]
[1752059123499,4.70803571,153.21,153.18,0.04857121]
[1752059123707,4.70803571,153.2,153.18,0.04857121]
[1752059123907,3.74730751,153.22,153.18,0.04857121]
[1752059124110,4.7080335,153.21,153.18,0.04857121]
[1752059124308,4.7080335,153.2,153.18,0.04857121]
[1752059124513,5.99090751,153.24,153.18,0.04857121]
[1752059124709,18.03939837,153.23,153.18,0.04857121]
[1752059124908,18.03939837,153.22,153.18,0.04857121]
[1752059125107,4.70827493,153.21,153.18,0.04857121]
[1752059125407,4.70827493,153.2,153.18,0.04857121]
[1752059125600,5.99090751,153.24,153.18,0.04857121]
[1752059125801,18.04039122,153.23,153.18,0.04857121]
[1752059126005,18.04039122,153.22,153.18,0.04857121]
[1752059126202,4.70853221,153.21,153.18,0.04857121]
[1752059126502,4.70853221,153.2,153.18,0.04857121]
[1752059126704,5.99090751,153.24,153.18,0.04857121]
[1752059127007,2.39830765,153.22,153.18,2.44687886]
[1752059127211,4.70860118,153.21,153.18,2.44687859]
[1752059127409,4.70860118,153.2,153.18,2.44687859]
[1752059127603,2.39830738,153.22,153.18,2.44687859]
[1752059127805,4.70867079,153.21,153.18,2.44687859]
[1752059128110,4.70867079,153.2,153.18,2.44687859]
[1752059128310,2.2436,153.24,153.19,2.39830738]
[1752059128507,11.89890944,153.23,153.19,2.39830738]
[1752059128804,4.70854586,153.22,153.19,2.39830738]
[1752059129009,2.39830738,153.23,153.19,2.39830738]
[1752059129010,4.70854586,153.21,153.19,2.39830738]
[1752059129308,0.04582883,153.22,153.19,2.39830738]
[1752059129504,4.70831655,153.21,153.19,2.39830738]
[1752059129706,0.04582883,153.22,153.19,2.39830738]
[1752059129906,4.70831655,153.21,153.19,2.39830738]
[1752059130111,0.04582883,153.22,153.19,2.39830738]
[1752059130307,4.70820185,153.21,153.19,2.39830738]